bitfinex/quotes_SOLUSD_20241229
["timestamp","ask_amount","ask_price","bid_price","bid_amount"]
[1735504897059,34.33490503,191.34,191.3,20.0]
[1735504897255,34.33490503,191.32,191.3,20.0]
[1735504897465,34.33490503,191.31,191.3,20.0]
[1735504898101,6.4553,191.38,191.28,21.5432]
[1735504898368,10.55802103,191.35,191.28,12.10122103]
[1735504899077,23.776884,191.35,191.28,12.10122103]
[1735504899476,6.234,191.43,191.32,20.0]
[1735504899662,10.55802103,191.37,191.33,20.0]
[1735504899862,23.776884,191.36,191.33,20.0]
[1735504900058,6.00124433,191.42,191.35,20.0]
[1735504900264,10.55802103,191.41,191.37,20.0]
[1735504900480,16.55926536,191.42,191.37,20.0]
[1735504900664,16.55926536,191.42,191.38,20.0]
[1735504900867,23.776884,191.41,191.38,20.0]
[1735504901181,11.0084092,191.48,191.38,30.55802103]
[1735504901182,10.7877092,191.48,191.38,30.55802103]
[1735504901382,10.7877092,191.48,191.41,20.0]
[1735504901561,23.776884,191.44,191.41,20.0]
[1735504901895,34.33490503,191.44,191.41,20.0]
[1735504902874,34.33490503,191.44,191.4,20.0]
[1735504904795,10.94378686,191.48,191.38,30.55802103]
[1735504904985,10.55802103,191.45,191.38,30.55802103]
[1735504906091,34.33490503,191.44,191.4,20.0]
[1735504906475,10.94378686,191.48,191.42,20.0]
[1735504906678,10.55802103,191.46,191.42,20.0]
[1735504906988,23.776884,191.45,191.42,20.0]
[1735504907794,34.33490503,191.47,191.4,10.55802103]
[1735504908605,10.55802103,191.46,191.42,20.0]
[1735504909290,23.776884,191.45,191.42,20.0]
[1735504910627,34.33490503,191.47,191.4,10.55802103]
[1735504910772,23.776884,191.45,191.4,10.55802103]
[1735504911769,10.55802103,191.45,191.41,20.0]
[1735504912771,23.776884,191.47,191.42,20.0]
[1735504912980,10.55802103,191.47,191.43,20.0]
[1735504913191,23.776884,191.46,191.43,20.0]
[1735504914873,34.33490503,191.46,191.42,20.0]
[1735504915893,10.55802103,191.45,191.4,0.78329229]
[1735504916103,10.55802103,191.45,191.41,20.0]
[1735504917696,23.776884,191.47,191.41,20.0]
[1735504917884,10.55802103,191.45,191.41,20.0]
[1735504919401,23.776884,191.43,191.41,20.0]
[1735504920611,6.16937766,191.48,191.36,2.35349569]
[1735504920612,10.55802103,191.42,191.36,2.35349569]
[1735504920799,6.16937766,191.48,191.36,1.5701]
[1735504920800,10.55802103,191.41,191.36,1.5701]
[1735504921008,10.55802103,191.41,191.38,20.0]
[1735504922301,10.55802103,191.42,191.38,20.0]
[1735504922497,23.776884,191.41,191.38,20.0]
[1735504922806,10.55802103,191.41,191.38,20.0]
[1735504923707,23.776884,191.41,191.38,20.0]
[1735504924108,23.776884,191.39,191.38,20.0]
[1735504924289,23.776884,191.39,191.36,1.5701]
[1735504924606,10.55802103,191.39,191.36,1.5701]
[1735504926609,6.16937766,191.48,191.37,20.0]
[1735504926908,23.776884,191.4,191.37,20.0]
[1735504927212,23.776884,191.4,191.37,20.78351123]
[1735504927501,0.96167422,191.49,191.37,20.78351123]
[1735504927704,10.55802103,191.43,191.37,0.78351123]
[1735504927909,10.55802103,191.44,191.38,20.0]
[1735504928204,10.55802103,191.44,191.39,0.78335451]
[1735504928906,23.776884,191.43,191.39,0.78335451]
[1735504929209,10.55802103,191.44,191.39,0.78335451]
[1735504929419,10.55802103,191.45,191.39,0.78335451]
[1735504929714,23.776884,191.44,191.39,0.78335451]
[1735504930013,34.33490503,191.44,191.39,0.78335451]
[1735504930217,10.55802103,191.47,191.43,21.6072]
[1735504930423,23.776884,191.46,191.43,21.6072]
[1735504931019,10.55802103,191.47,191.43,21.6072]
[1735504931601,34.33490503,191.46,191.43,1.6072]
[1735504932421,23.776884,191.46,191.43,1.6072]
[1735504933716,23.776884,191.47,191.43,1.6072]
[1735504933902,23.776884,191.47,191.43,2.39041248]
[1735504934919,23.776884,191.54,191.43,2.39041248]
[1735504935107,10.55802103,191.5,191.46,20.0]
[1735504935307,23.776884,191.49,191.46,20.0]
[1735504935692,2.48450708,191.55,191.46,20.0]
[1735504935895,10.55802103,191.51,191.47,20.0]
[1735504936124,10.55802103,191.52,191.48,20.0]
[1735504937807,2.48450708,191.55,191.45,0.78307447]
[1735504937808,23.776884,191.51,191.47,20.0]
[1735504938133,10.55802103,191.52,191.48,20.0]
[1735504938297,6.1063,191.63,191.48,20.0]
[1735504938506,10.55802103,191.53,191.48,20.0]
[1735504939201,23.776884,191.58,191.48,20.0]
[1735504939420,23.776884,191.52,191.49,20.0]
[1735504939821,10.55802103,191.56,191.49,30.55802103]
[1735504940108,10.55802103,191.56,191.5,1.5868]
[1735504941314,10.55802103,191.57,191.5,12.14482103]
[1735504941517,23.776884,191.56,191.51,0.78289543]
[1735504941898,10.55802103,191.56,191.51,0.78289543]
[1735504944837,6.65261655,191.59,191.51,0.78289543]
[1735504945036,10.55802103,191.56,191.51,0.78289543]
[1735504945525,23.776884,191.56,191.51,0.78289543]
[1735504948331,10.55802103,191.56,191.51,0.78289543]
[1735504949144,23.776884,191.56,191.51,0.78289543]
[1735504949946,23.776884,191.57,191.54,20.0]
[1735504950235,34.33490503,191.57,191.54,20.0]
[1735504950445,23.776884,191.57,191.54,20.0]
[1735504953954,23.776884,191.58,191.52,30.55802103]
[1735504954249,34.33490503,191.58,191.54,20.0]
[1735504955561,23.776884,191.55,191.53,20.0]
[1735504955851,34.33490503,191.55,191.53,20.0]
[1735504957152,23.776884,191.59,191.51,20.0]
[1735504957356,23.776884,191.59,191.57,20.0]
[1735504957531,10.55802103,191.62,191.57,20.0]
[1735504957850,23.776884,191.61,191.58,20.0]
[1735504958049,6.424,191.68,191.58,20.0]
[1735504958251,10.55802103,191.62,191.58,20.0]
[1735504958454,10.55802103,191.59,191.56,20.0]
[1735504958756,23.776884,191.57,191.56,20.0]
[1735504958950,10.55802103,191.59,191.56,20.0]
[1735504960437,10.55802103,191.58,191.56,20.0]
[1735504960639,10.55802103,191.57,191.5,2.36957581]
[1735504960837,23.776884,191.55,191.52,20.0]
[1735504961149,10.55802103,191.57,191.53,20.0]
[1735504961334,10.55802103,191.58,191.54,20.0]
[1735504961538,2.66699688,191.61,191.54,20.0]
[1735504961539,10.55802103,191.59,191.54,20.0]
[1735504962848,23.776884,191.58,191.53,10.55802103]
[1735504963551,23.776884,191.58,191.52,31.34079885]
[1735504964462,23.776884,191.58,191.53,10.55802103]
[1735504965357,23.776884,191.58,191.52,31.34079885]
[1735504968566,23.776884,191.58,191.54,20.0]
[1735504968953,23.776884,191.59,191.54,20.78274864]
[1735504969748,34.33490503,191.59,191.54,20.78274864]
[1735504971069,34.33490503,191.6,191.56,20.0]
[1735504972470,34.33490503,191.6,191.54,31.34076967]
[1735504972471,23.776884,191.6,191.54,31.34076967]
[1735504973474,10.55802103,191.62,191.58,20.0]
[1735504973672,10.55802103,191.63,191.58,20.0]
[1735504974169,23.776884,191.62,191.59,20.0]
[1735504974372,34.33490503,191.62,191.59,20.0]
[1735504975683,34.33490503,191.62,191.58,20.0]
[1735504975856,23.776884,191.62,191.58,20.0]
[1735504977075,23.776884,191.62,191.57,1.6399]
[1735504977076,0.88378773,191.64,191.6,20.0]
[1735504977379,10.55802103,191.64,191.6,20.0]
[1735504977563,10.55802103,191.65,191.6,20.0]
[1735504977747,10.55802103,191.66,191.61,20.78252296]
[1735504977951,10.55802103,191.67,191.61,20.78252296]
[1735504978169,23.776884,191.66,191.61,20.78252296]
[1735504978381,34.33490503,191.66,191.61,0.78252296]
[1735504978562,10.55802103,191.66,191.61,0.78252296]
[1735504979675,5.75080836,191.71,191.61,0.78252296]
[1735504979976,10.55802103,191.67,191.61,0.78252296]
[1735504980185,23.776884,191.66,191.61,0.78252296]
[1735504981077,10.55802103,191.7,191.67,20.0]
[1735504981277,5.75080836,191.71,191.67,20.0]
[1735504981447,10.55802103,191.7,191.67,20.0]
[1735504982254,10.55802103,191.71,191.68,20.0]
[1735504982581,10.55802103,191.7,191.68,20.0]
[1735504982884,5.75080836,191.76,191.65,20.0]
[1735504982885,23.776884,191.68,191.65,20.0]
[1735504983581,10.55802103,191.68,191.64,1.6125]
[1735504983792,23.776884,191.66,191.64,1.6125]
[1735504984099,10.55802103,191.7,191.66,20.0]
[1735504984761,23.776884,191.69,191.66,20.0]
[1735504985085,23.776884,191.69,191.64,2.39478795]
[1735504985086,34.33490503,191.69,191.65,20.0]
[1735504985289,23.776884,191.69,191.66,20.0]
[1735504986587,5.75080836,191.76,191.67,20.0]
[1735504986781,10.55802103,191.72,191.67,20.0]
[1735504987273,10.55802103,191.73,191.67,20.0]
[1735504987671,5.75080836,191.76,191.71,20.0]
[1735504987873,10.55802103,191.75,191.71,20.0]
[1735504988069,10.55802103,191.73,191.71,20.0]
[1735504988277,34.33490503,191.72,191.71,20.0]
[1735504988786,34.33490503,191.72,191.68,20.0]
[1735504989792,10.55802103,191.71,191.67,20.0]
[1735504990184,10.55802103,191.69,191.64,1.6125]
[1735504990496,10.55802103,191.65,191.6,2.39469645]
[1735504990671,23.776884,191.63,191.6,2.39469645]
[1735504990860,23.776884,191.61,191.58,0.78257055]
[1735504991063,23.776884,191.61,191.56,9.02025423]
[1735504991261,34.33490503,191.6,191.59,20.0]
[1735504991991,10.55802103,191.62,191.58,20.0]
[1735504992876,10.55802103,191.62,191.56,0.78268625]
[1735504992877,34.33490503,191.61,191.57,20.0]
[1735504993389,10.55802103,191.6,191.57,20.0]
[1735504995294,23.776884,191.6,191.57,20.0]
[1735504996696,5.82908001,191.68,191.57,20.0]
[1735504996889,10.55802103,191.61,191.57,20.0]
[1735504997187,23.776884,191.6,191.57,20.0]
[1735504999899,23.776884,191.6,191.58,20.0]
[1735505004198,23.776884,191.61,191.58,20.0]
[1735505005401,4.4525928,191.67,191.59,20.0]
[1735505005615,10.55802103,191.63,191.59,20.0]
[1735505005901,23.776884,191.62,191.59,40.0]
[1735505006706,23.776884,191.63,191.59,40.0]
[1735505007810,10.55802103,191.63,191.59,40.0]
[1735505007985,23.776884,191.6,191.59,20.0]
[1735505008186,23.776884,191.6,191.57,20.0]
[1735505008396,23.776884,191.6,191.58,10.558021]
[1735505008603,10.55802103,191.6,191.55,1.6125]
[1735505008783,10.55802103,191.6,191.56,20.0]
[1735505008987,23.776884,191.6,191.59,20.0]
[1735505010715,23.776884,191.66,191.59,20.0]
[1735505010990,10.55802103,191.6,191.59,20.0]
[1735505011184,23.776884,191.6,191.59,20.0]
[1735505013213,10.55802103,191.62,191.59,20.0]
[1735505014310,4.4525928,191.67,191.59,20.0]
[1735505014513,10.55802103,191.63,191.59,20.0]
[1735505016113,10.55802103,191.64,191.59,20.0]
[1735505016913,4.4525928,191.67,191.59,20.0]
[1735505016914,10.55802103,191.65,191.61,20.0]
[1735505017609,34.33490503,191.64,191.6,20.0]
[1735505020112,10.55802103,191.65,191.61,20.0]
[1735505020289,23.776884,191.64,191.61,20.0]
[1735505021800,23.776884,191.65,191.59,31.34053869]
[1735505022594,10.55802103,191.65,191.61,20.0]
[1735505026525,10.55802103,191.65,191.59,31.34053869]
[1735505028822,23.776884,191.65,191.59,31.34053869]
[1735505033125,23.776884,191.65,191.63,20.0]
[1735505035829,23.776884,191.7,191.63,20.0]
[1735505036118,23.776884,191.65,191.63,20.0]
[1735505044134,11.26345065,191.73,191.64,20.0]
[1735505044135,10.55802103,191.68,191.64,20.0]
[1735505044512,23.776884,191.67,191.64,20.0]
[1735505045233,10.55802103,191.67,191.63,20.0]
[1735505046638,23.776884,191.67,191.63,20.0]
[1735505047518,23.776884,191.67,191.64,20.0]
[1735505050464,23.776884,191.67,191.63,20.0]
[1735505050746,10.55802103,191.67,191.63,20.0]
[1735505056247,23.776884,191.67,191.63,20.0]
[1735505057856,23.776884,191.7,191.64,20.0]
[1735505058039,23.776884,191.67,191.64,20.0]
[1735505061155,10.55802103,191.7,191.64,20.0]
[1735505061339,23.776884,191.69,191.64,20.0]
[1735505061947,23.776884,191.69,191.66,20.0]
[1735505063763,10.55802103,191.69,191.66,20.0]
[1735505066265,23.776884,191.7,191.66,20.0]
[1735505066555,34.33490503,191.7,191.66,20.0]
[1735505069364,34.33490503,191.7,191.67,20.0]
[1735505070243,4.95705723,191.78,191.67,30.55802103]
[1735505070554,4.95705723,191.78,191.71,20.0]
[1735505070555,10.55802103,191.74,191.71,20.0]
[1735505070771,23.776884,191.73,191.71,20.0]
[1735505071576,0.2207,191.78,191.69,30.55802103]
[1735505071733,10.55802103,191.76,191.69,30.55802103]
[1735505071930,23.776884,191.75,191.69,30.55802103]
[1735505072662,10.55802103,191.76,191.69,30.55802103]
[1735505072836,10.55802103,191.76,191.69,31.34020683]
[1735505073365,23.776884,191.78,191.73,20.0]
[1735505073562,23.776884,191.75,191.73,20.0]
[1735505076536,6.30639342,191.79,191.73,20.0]
[1735505076739,23.776884,191.76,191.73,20.0]
[1735505077456,5.89364279,191.83,191.75,20.0]
[1735505077768,10.55802103,191.76,191.75,20.0]
[1735505078764,10.55802103,191.76,191.73,20.0]
[1735505079172,23.776884,191.76,191.73,20.0]
[1735505080289,10.55802103,191.78,191.71,30.55802103]
[1735505082375,23.776884,191.76,191.71,20.0]
[1735505082565,10.55802103,191.76,191.73,20.0]
[1735505083897,23.776884,191.82,191.73,20.0]
[1735505084067,12.20003621,191.83,191.73,20.0]
[1735505084068,10.55802103,191.76,191.73,20.0]
[1735505085278,23.776884,191.75,191.73,20.0]
[1735505086681,5.67294279,191.81,191.73,20.0]
[1735505086861,10.55802103,191.77,191.73,20.0]
[1735505087389,23.776884,191.8,191.72,20.0]
[1735505087790,23.776884,191.77,191.72,20.0]
[1735505090901,23.776884,191.77,191.74,20.0]
[1735505091559,23.776884,191.78,191.72,30.55802103]
[1735505092595,10.55802103,191.78,191.72,20.0]
[1735505092972,23.776884,191.8,191.74,20.0]
[1735505093164,10.55802103,191.78,191.74,20.0]
[1735505093491,23.776884,191.78,191.72,30.55802103]
[1735505095502,23.776884,191.8,191.72,30.55802103]
[1735505095804,23.776884,191.78,191.72,30.55802103]
[1735505097068,23.776884,191.8,191.73,1.6474]
[1735505097395,23.776884,191.78,191.73,1.6474]
[1735505100816,10.55802103,191.75,191.7,0.78217447]
[1735505101093,23.776884,191.72,191.69,1.6091]
[1735505101295,34.33490503,191.72,191.69,1.6091]
[1735505101600,23.776884,191.72,191.7,20.0]
[1735505101776,6.0994,191.79,191.71,20.0]
[1735505101967,10.55802103,191.77,191.72,20.0]
[1735505102176,5.67294279,191.81,191.72,20.0]
[1735505102401,6.0994,191.84,191.73,30.55802103]
[1735505102606,23.776884,191.79,191.73,30.55802103]
[1735505103206,10.55802103,191.8,191.77,20.0]
[1735505103384,10.55802103,191.81,191.77,20.0]
[1735505105412,23.776884,191.8,191.78,20.0]
[1735505108508,23.776884,191.8,191.74,30.55802103]
[1735505108717,23.776884,191.76,191.74,20.0]
[1735505109303,10.55802103,191.78,191.74,20.0]
[1735505109807,10.55802103,191.79,191.74,20.0]
[1735505110017,23.776884,191.78,191.75,20.0]
[1735505110389,23.776884,191.83,191.75,20.0]
[1735505110721,23.776884,191.78,191.75,20.0]
[1735505114900,23.776884,191.78,191.71,30.55802103]
[1735505116692,23.776884,191.78,191.75,20.0]
[1735505116890,10.55802103,191.8,191.76,20.0]
[1735505117115,10.55802103,191.81,191.77,20.0]
[1735505117740,10.55802103,191.82,191.78,20.0]
[1735505117949,10.55802103,191.83,191.79,20.0]
[1735505118449,23.776884,191.82,191.79,20.0]
[1735505120878,6.1784,191.88,191.8,20.0]
[1735505121046,10.55802103,191.84,191.8,20.0]
[1735505121642,6.1784,191.88,191.82,20.0]
[1735505121856,10.55802103,191.86,191.82,20.0]
[1735505122152,0.2207,191.9,191.8,10.55802103]
[1735505122345,5.67294279,191.91,191.83,20.0]
[1735505122533,10.55802103,191.87,191.83,20.0]
[1735505122954,10.55802103,191.86,191.83,20.0]
[1735505123160,23.776884,191.9,191.83,20.0]
[1735505123323,5.67294279,191.91,191.8,10.55802103]
[1735505123324,5.67294279,191.91,191.85,20.0]
[1735505123652,10.55802103,191.9,191.86,20.0]
[1735505124335,10.55802103,191.9,191.85,20.0]
[1735505124519,10.55802103,191.91,191.85,20.0]
[1735505125053,10.55802103,191.92,191.87,20.0]
[1735505125721,5.67294279,191.96,191.87,20.0]
[1735505125722,10.55802103,191.93,191.87,20.0]
[1735505125923,5.67294279,191.96,191.87,30.55802103]
[1735505126141,10.55802103,191.94,191.88,1.5559]
[1735505126341,10.55802103,191.94,191.91,20.0]
[1735505126534,23.776884,191.93,191.91,20.0]
[1735505126746,6.30639342,191.97,191.92,20.0]
[1735505126959,10.55802103,191.96,191.93,20.0]
[1735505127130,23.776884,192.0,191.93,20.0]
[1735505127333,10.55802103,191.97,191.93,20.0]
[1735505127552,10.55802103,191.94,191.88,1.5559]
[1735505127742,34.33490503,191.89,191.84,1.5559]
[1735505127952,23.776884,191.87,191.84,1.5559]
[1735505128562,10.55802103,191.87,191.85,20.0]
[1735505128951,23.776884,191.92,191.85,20.0]
[1735505129130,23.776884,191.92,191.84,1.5559]
[1735505129131,10.55802103,191.87,191.84,21.5559]
[1735505129331,23.776884,191.87,191.85,20.0]
[1735505129737,23.776884,191.92,191.86,20.0]
[1735505129943,6.30639342,191.93,191.86,20.0]
[1735505129944,10.55802103,191.9,191.86,20.0]
[1735505130142,23.776884,191.89,191.86,20.0]
[1735505130757,23.776884,191.92,191.87,20.0]
[1735505130965,10.55802103,191.92,191.88,20.0]
[1735505131147,10.55802103,191.95,191.88,10.55802103]
[1735505131339,11.97933621,191.98,191.88,10.55802103]
[1735505131539,10.55802103,191.95,191.89,20.0]
[1735505132045,23.776884,191.94,191.89,30.55802103]
[1735505132354,10.55802103,191.96,191.89,30.55802103]
[1735505132541,23.776884,191.95,191.93,20.0]
[1735505133438,10.55802103,191.97,191.93,20.0]
[1735505133762,10.55802103,192.0,191.96,20.0]
[1735505134239,10.55802103,191.98,191.96,20.0]
[1735505134849,23.776884,191.97,191.94,20.0]
[1735505135365,3.96343651,192.03,191.95,20.0]
[1735505135662,23.776884,191.98,191.95,20.0]
[1735505136370,23.776884,191.98,191.92,12.11272103]
[1735505136371,10.55802103,191.98,191.94,20.0]
[1735505136739,23.776884,191.95,191.94,20.0]
[1735505136953,23.776884,191.95,191.92,1.5547]
[1735505137472,23.776884,191.95,191.89,30.55802103]
[1735505138867,23.776884,191.94,191.88,10.55802103]
[1735505139177,23.776884,191.95,191.91,20.0]
[1735505139964,6.0919,192.0,191.89,30.55802103]
[1735505140268,23.776884,191.95,191.93,20.0]
[1735505141270,10.55802103,191.98,191.93,20.0]
[1735505141479,10.55802103,191.98,191.91,30.55802103]
[1735505142075,3.96343651,192.02,191.91,30.55802103]
[1735505142243,10.55802103,191.99,191.95,20.0]
[1735505142749,34.33490503,191.98,191.94,20.0]
[1735505143170,3.96343651,192.02,191.92,30.55802103]
[1735505143351,23.776884,191.99,191.96,20.0]
[1735505145052,23.776884,192.03,191.96,20.0]
[1735505145371,23.776884,191.99,191.96,20.0]
[1735505145750,10.55802103,192.01,191.96,20.0]
[1735505145979,10.55802103,192.02,191.98,20.0]
[1735505147180,34.33490503,192.01,191.97,20.0]
[1735505147680,34.33490503,191.99,191.97,20.0]
[1735505147850,34.33490503,191.99,191.95,20.0]
[1735505148050,23.776884,191.99,191.96,20.0]
[1735505148846,3.96343651,192.06,191.96,20.0]
[1735505149065,10.55802103,192.01,191.96,20.0]
[1735505149265,9.92316327,192.06,191.97,20.0]
[1735505149548,10.55802103,192.02,191.97,20.0]
[1735505151451,10.55802103,192.02,191.98,20.0]
[1735505151664,10.55802103,192.01,191.98,20.0]
[1735505151980,10.55802103,192.0,191.97,20.0]
[1735505152686,10.55802103,192.0,191.96,20.0]
[1735505152858,23.776884,192.0,191.96,20.0]
[1735505153179,10.55802103,192.0,191.96,20.0]
[1735505153387,10.55802103,191.99,191.95,20.0]
[1735505153559,10.55802103,191.98,191.95,20.0]
[1735505154172,23.776884,191.95,191.88,12.10562103]
[1735505154377,34.33490503,191.95,191.88,32.97952403]
[1735505154988,34.33490503,191.95,191.91,20.0]
[1735505156185,10.55802103,191.94,191.91,20.0]
[1735505156396,34.33490503,191.93,191.88,1.5476]
[1735505156694,10.55802103,191.94,191.9,20.0]
[1735505156874,10.55802103,191.94,191.88,1.5476]
[1735505157293,23.776884,191.93,191.9,20.0]
[1735505158402,10.55802103,191.95,191.91,20.0]
[1735505159196,10.55802103,191.94,191.88,1.5476]
[1735505159787,34.33490503,191.93,191.88,1.5476]
[1735505159992,10.55802103,191.92,191.88,1.5476]
[1735505160178,34.33490503,191.91,191.84,10.55802103]
[1735505160380,23.776884,191.87,191.83,1.5611]
[1735505160582,34.33490503,191.87,191.83,1.5611]
[1735505160778,34.33490503,191.87,191.83,21.5611]
[1735505162698,23.776884,191.87,191.84,20.0]
[1735505163493,3.96343651,191.93,191.83,1.5611]
[1735505163494,10.55802103,191.89,191.83,1.5611]
[1735505163785,10.55802103,191.9,191.83,32.11912103]
[1735505163964,10.55802103,191.91,191.84,10.55802103]
[1735505164367,10.55802103,191.91,191.88,20.0]
[1735505164591,10.55802103,191.91,191.84,10.55802103]
[1735505164776,34.33490503,191.9,191.83,32.11912103]
[1735505165997,23.776884,191.9,191.84,10.55802103]
[1735505166702,5.95972676,191.94,191.87,20.0]
[1735505166994,10.55802103,191.92,191.87,20.0]
[1735505167177,10.55802103,191.92,191.88,20.0]
[1735505167994,23.776884,191.91,191.88,20.0]
[1735505168207,5.67294279,191.97,191.88,10.55802103]
[1735505168505,10.55802103,191.95,191.88,10.55802103]
[1735505168879,23.776884,191.93,191.88,10.55802103]
[1735505169283,23.776884,191.94,191.89,10.55802103]
[1735505169588,34.33490503,191.94,191.87,30.55802103]
[1735505169796,34.33490503,191.92,191.86,10.55802103]
[1735505170005,34.33490503,191.92,191.89,20.0]
[1735505170006,10.55802103,191.91,191.89,20.0]
[1735505170184,10.55802103,191.92,191.89,20.0]
[1735505170803,23.776884,191.96,191.89,20.0]
[1735505170993,10.55802103,191.93,191.89,20.0]
[1735505171190,23.776884,191.92,191.89,20.0]
[1735505171500,5.67294279,191.97,191.89,20.0]
[1735505171501,10.55802103,191.95,191.89,20.0]
[1735505171991,23.776884,191.94,191.89,30.55802103]
[1735505173301,10.55802103,191.95,191.89,30.55802103]
[1735505173492,23.776884,191.94,191.89,30.55802103]
[1735505174113,5.95972676,191.98,191.94,20.0]
[1735505174272,10.55802103,191.99,191.95,20.0]
[1735505174473,34.33490503,191.98,191.95,20.0]
[1735505174673,23.776884,191.96,191.95,20.0]
[1735505175221,23.776884,191.96,191.93,20.0]
[1735505176809,10.55802103,192.0,191.96,20.0]
[1735505177101,10.55802103,191.98,191.96,20.0]
[1735505177515,10.55802103,191.99,191.95,20.0]
[1735505178976,23.776884,191.98,191.95,20.0]
[1735505179182,34.33490503,191.96,191.91,1.5688]
[1735505179506,10.55802103,191.95,191.91,1.5688]
[1735505179688,10.55802103,191.95,191.91,21.5688]
[1735505180208,10.55802103,191.96,191.91,1.5688]
[1735505180708,23.776884,191.96,191.93,20.0]
[1735505181419,10.55802103,191.94,191.86,1.5688]
[1735505181707,10.55802103,191.94,191.87,10.55802103]
[1735505181899,10.55802103,191.93,191.86,20.36444334]
[1735505182079,10.55802103,191.94,191.9,20.0]
[1735505183305,23.776884,191.94,191.9,20.0]
[1735505183678,10.55802103,191.97,191.92,20.0]
[1735505183982,10.55802103,191.97,191.93,20.0]
[1735505184176,23.776884,191.96,191.93,20.0]
[1735505184371,23.776884,191.96,191.91,30.55802103]
[1735505184605,10.55802103,191.98,191.91,42.48216403]
[1735505184808,23.776884,191.97,191.91,42.48216403]
[1735505185006,10.55802103,191.98,191.91,42.48216403]
[1735505185174,10.55802103,191.99,191.92,10.55802103]
[1735505185706,34.33490503,191.98,191.91,42.48216403]
[1735505186078,10.55802103,191.97,191.91,31.924143]
[1735505187218,10.55802103,192.0,191.93,1.5688]
[1735505187414,23.776884,191.99,191.93,12.12682103]
[1735505188615,10.55802103,192.02,191.97,20.0]
[1735505188777,5.67294279,192.06,191.93,1.5688]
[1735505188778,10.55802103,192.03,191.99,20.0]
[1735505189705,23.776884,192.02,191.99,20.0]
[1735505189883,10.55802103,192.03,191.99,20.0]
[1735505190211,10.55802103,192.05,191.98,10.55802103]
[1735505190411,5.67294279,192.06,191.97,30.55802103]
[1735505190590,10.55802103,192.04,191.99,20.0]
[1735505190793,10.55802103,192.03,191.99,20.0]
[1735505191615,23.776884,192.05,191.99,20.0]
[1735505191913,10.55802103,192.04,191.99,20.0]
[1735505193326,10.55802103,192.04,191.97,10.55802103]
[1735505193621,10.55802103,192.04,192.0,20.0]
[1735505195125,34.33490503,192.05,192.01,20.0]
[1735505195829,23.776884,192.05,192.01,20.0]
[1735505196131,10.55802103,192.06,192.02,20.0]
[1735505197028,23.776884,192.05,192.02,20.0]
[1735505197234,34.33490503,192.05,191.99,20.0]
[1735505197531,34.33490503,192.05,192.01,20.0]
[1735505198126,5.95972676,192.1,191.99,20.0]
[1735505198329,10.55802103,192.08,192.03,20.0]
[1735505198696,23.776884,192.06,192.03,20.0]
[1735505200412,23.776884,192.06,192.01,21.5625]
[1735505200616,10.55802103,192.06,192.01,21.5625]
[1735505202537,23.776884,192.06,192.03,20.0]
[1735505202727,34.33490503,192.06,192.04,20.0]
[1735505203735,34.33490503,192.06,192.02,20.0]
[1735505204216,23.776884,192.06,192.03,20.0]
[1735505204411,23.776884,192.06,192.04,20.0]
[1735505204730,10.55802103,192.08,192.01,32.12052103]
[1735505205537,23.776884,192.07,192.01,32.12052103]
[1735505206624,10.55802103,192.08,192.01,32.12052103]
[1735505206837,5.67294279,192.11,192.03,20.0]
[1735505207009,23.776884,192.09,192.07,20.0]
[1735505207209,10.55802103,192.09,192.06,20.0]
[1735505208039,23.776884,192.08,192.05,20.0]
[1735505209046,5.67294279,192.16,192.05,20.0]
[1735505209221,10.55802103,192.1,192.03,20.0]
[1735505209548,10.55802103,192.1,192.03,30.55802103]